fUST/lending_fUST_20240110
["ID","MTS","AMOUNT","RATE_DAILY","PERIOD"]
[311000699,1704849039234,-559.7124776,0.00022927,2]
[311000700,1704849039243,-309.86062544,0.00022927,2]
[311000701,1704849039252,-1069.48811553,0.00022927,2]
[311000702,1704849039261,-237.39112341,0.00022928,2]
[311000703,1704849039271,-440.06134838,0.00022928,2]
[311000704,1704849039280,-284.57086368,0.00022928,2]
[311000705,1704849039290,-309.86262128,0.00022929,2]
[311000706,1704849039299,-166.666666,0.00022944,2]
[311000708,1704849039308,-9918.08132345,0.00023,2]
[311000709,1704849039318,-2092.57766549,0.00023,2]
[311000711,1704849039327,-166.666666,0.00023456,2]
[311000712,1704849039336,-166.666666,0.00023969,2]
[311000714,1704849039345,-12028.66805593,0.00023998,2]
[311000720,1704849041210,-1019.7077532,0.00023998,2]
[311000721,1704849041222,-8154.68223714,0.00023998,2]
[311001118,1704850220316,155.08561493,0.00029,30]
[311001119,1704850220602,-2873.08771636,0.0001774,2]
[311001120,1704850220625,-155.0,0.00017741,2]
[311001121,1704850220648,-2034.27485967,0.00017741,2]
[311001122,1704850220671,-1937.63742397,0.00017741,2]
[311001211,1704850238225,-155.0,0.0001774,3]
[311001212,1704850238235,-91.84103874,0.00017741,2]
[311001213,1704850238245,-2743.43626128,0.00017743,2]
[311001214,1704850238270,-13133.69646558,0.00017743,2]
[311001215,1704850238279,-1569.96989378,0.00017798,2]
[311001216,1704850238289,-245.98926642,0.000178,2]
[311001217,1704850238298,-1578.65511595,0.00019,2]
[311001218,1704850238307,-10496.72843604,0.00019176,2]
[311001219,1704850238316,-178.778756,0.00019178,2]
[311001220,1704850238326,-176.146778,0.00019178,2]
[311001221,1704850238335,-1112.0110415,0.000195,2]
[311001222,1704850238345,-200.0,0.00019529,2]
[311001223,1704850238354,-3621.07086876,0.000199,2]
[311001224,1704850238365,-317.53626538,0.0002,2]
[311001225,1704850238376,-2993.53442921,0.0002,2]
[311001226,1704850238386,-1194.83746505,0.0002,2]
[311001227,1704850238395,-236.79527182,0.0002,2]
[311001228,1704850238405,-155.0,0.0002096,2]
[311001229,1704850238414,-429.0068267,0.00020961,2]
[311001230,1704850238423,-853.38318073,0.00020962,2]
[311001231,1704850238433,-266.00114845,0.00020962,2]
[311001232,1704850238443,-155.3221236,0.00021598,2]
[311001233,1704850238453,-326.73090334,0.00021917,2]
[311001234,1704850238462,-166.666666,0.00021918,2]
[311001235,1704850238472,-156.86767994,0.00022238,2]
[311001236,1704850238483,-3927.64829251,0.00022239,2]
[311001237,1704850238493,-4916.51301772,0.0002224,2]
[311001238,1704850238502,-1000.0,0.00022241,2]
[311001239,1704850238512,-881.24057975,0.00022241,2]
[311001240,1704850238521,-156.1324687,0.00022242,2]
[311001241,1704850238531,-166.666666,0.00022431,2]
[311001242,1704850238542,-979.14871705,0.000227,2]
[311001243,1704850238552,-166.666666,0.00022944,2]
[311001244,1704850238561,-16778.9,0.0002296,3]
[311001245,1704850238571,-20134.68,0.0002297,3]
[311001246,1704850238580,-155.09098224,0.00022978,2]
[311001247,1704850238590,-155.47278775,0.00022978,2]
[311001248,1704850238600,-469.64064105,0.00022978,2]
[311001249,1704850238610,-439.13920883,0.00022978,2]
[311001250,1704850238620,-2070.35788054,0.00022978,2]
[311001251,1704850238629,-184.36814101,0.00022978,2]
[311001252,1704850238638,-155.36060944,0.00022978,2]
[311001253,1704850238648,-155.3437072,0.00022978,2]
[311001255,1704850238657,-2873.08771636,0.00022978,2]
[311001256,1704850238668,-1832.18123338,0.00022978,2]
[311001258,1704850238678,-251.17722982,0.00022978,2]
[311001260,1704850238688,-155.02121577,0.00022979,2]
[311001262,1704850238697,-155.690768,0.00022979,2]
[311001264,1704850238707,-155.11047329,0.00022979,2]
[311001266,1704850238717,-24161.62,0.0002298,3]
[311001268,1704850238726,-155.01692973,0.00022988,2]
[311001270,1704850238736,-155.23546305,0.00022988,2]
[311001271,1704850238746,-155.08091953,0.00022988,2]
[311001273,1704850238755,-155.24810709,0.00022989,2]
[311001275,1704850238765,-155.6307175,0.00022989,2]
[311001277,1704850238775,-28946.55,0.0002299,3]
[311001279,1704850238784,-2092.57766549,0.00023,2]
[311001281,1704850238793,-9918.08132345,0.00023,2]
[311001283,1704850238802,-186.96965447,0.00023232,2]
[311001285,1704850238811,-179.387171,0.00023337,2]
[311001287,1704850238821,-166.666666,0.00023456,2]
[311001289,1704850238830,-344.62737218,0.00023869,2]
[311001291,1704850238839,-46795.98548858,0.00023898,2]
[311001293,1704850238849,-166.666666,0.00023969,2]
[311001295,1704850238858,-288.41738969,0.00023997,2]
[311001297,1704850238867,-540.77087906,0.00023997,2]
[311001299,1704850238877,-215.23856483,0.00023997,2]
[311001301,1704850238886,-500.0,0.00023997,2]
[311001303,1704850238895,-489.27325357,0.00023997,2]
[311001305,1704850238904,-500.0,0.00023997,2]
[311001307,1704850238914,-500.0,0.00023997,2]
[311001309,1704850238924,-500.0,0.00023997,2]
[311001311,1704850238933,-500.0,0.00023997,2]
[311001313,1704850238943,-226.10911516,0.00023997,2]
[311001315,1704850238952,-193.84725271,0.00023997,2]
[311001317,1704850238962,-500.0,0.00023997,2]
[311001319,1704850238971,-624.30913994,0.00023997,2]
[311001321,1704850238982,-476.82570989,0.00023997,2]
[311001323,1704850238991,-500.0,0.00023997,2]
[311001325,1704850239001,-489.27325357,0.00023997,2]
[311001327,1704850239010,-208.2577063,0.00023997,2]
[311001328,1704850239020,-485.93464804,0.00023997,2]
[311001331,1704850239029,-243.09350002,0.00023997,4]
[311001332,1704850239039,-500.0,0.00023997,4]
[311001335,1704850239049,-219.96504344,0.00023997,4]
[311001336,1704850239058,-475.67428333,0.00023997,4]
[311001338,1704850239068,-500.0,0.00023997,4]
[311001340,1704850239078,-410.00000033,0.00023997,4]
[311001343,1704850239088,-387.76295527,0.00023997,4]
[311001344,1704850239097,-369.79674089,0.00023997,4]
[311001346,1704850239107,-363.45094982,0.00023997,4]
[311001348,1704850239116,-500.0,0.00023997,4]
[311001350,1704850239125,-607.2509753,0.00023997,4]
[311001352,1704850239134,-1389.42915249,0.00023998,2]
[311001354,1704850239144,-300.0,0.00023998,2]
[311001356,1704850239154,-200.0,0.00023998,2]
[311001358,1704850239164,-2079.14548292,0.00023998,2]
[311001360,1704850239174,-1821.42144287,0.00023998,2]
[311001362,1704850239184,-283425.20901127,0.00023998,2]
[311001364,1704850239196,-155.0,0.00023998,2]
[311001366,1704850239206,-155.07725077,0.00023998,2]
[311001368,1704850239215,-155.0,0.00024,2]
[311001370,1704850239226,-2292.62638427,0.00024,2]
[311001372,1704850239236,-166.666666,0.00024482,2]
[311001374,1704850239247,-380.0,0.00024658,2]
[311001376,1704850239257,-200.0,0.00024658,2]
[311001378,1704850239267,-3621.07086876,0.000249,2]
[311001379,1704850239282,-496.879336,0.0002498,5]
[311001381,1704850239294,-74636.90250778,0.00024997,2]
[311001384,1704850239308,-24849.18966415,0.00024997,2]
[311001386,1704850239319,-70119.53813095,0.00024997,2]
[311001592,1704850241187,-872.56977946,0.00017739,2]
[311001594,1704850241198,-149.26183449,0.00020959,2]
[311001596,1704850241211,-527.70070345,0.00020959,2]
[311001598,1704850241220,-241.73082472,0.00022978,2]
[311001600,1704850241229,-3250.85690356,0.00024997,2]
[311001826,1704850246238,-155.10057155,0.00023998,2]
[311001827,1704850246248,-1742.58245333,0.00024997,2]
[311001828,1704850246263,-2414.70980252,0.00024997,2]
[311001867,1704850522777,150.98490151,0.00028448,30]
[311001877,1704850890867,5265.47636,0.00029,30]
[311001959,1704851432388,-451.74832768,0.00015941,2]
[311001961,1704851432398,-155.0,0.00015942,2]
[311001963,1704851432407,-155.0,0.00015943,2]
[311001964,1704851432416,-155.0,0.00015944,2]
[311001966,1704851432425,-155.0,0.00015944,2]
[311001967,1704851432434,-2873.08771636,0.00015944,2]
[311001968,1704851432443,-819.66434902,0.00015962,2]
[311001969,1704851432455,-159.87666002,0.00015962,2]
[311001970,1704851432466,-2804.5627114,0.00016112,2]
[311001972,1704851432475,-769.32100204,0.00017092,2]
[311001973,1704851432484,-872.56977946,0.00017735,2]
[311001975,1704851432493,-6272.70721473,0.00017736,2]
[311001977,1704851432502,-158.56600314,0.00017736,2]
[311001979,1704851432511,-155.08091953,0.00017736,2]
[311001981,1704851432520,-157.53086971,0.00017736,2]
[311001983,1704851432529,-155.01692973,0.00017736,2]
[311001985,1704851432538,-155.6307175,0.00017736,2]
[311001986,1704851432547,-155.02121577,0.00017736,2]
[311001987,1704851432556,-155.09098224,0.00017736,2]
[311001988,1704851432566,-2070.35788054,0.00017736,2]
[311001989,1704851432575,-155.24810709,0.00017736,2]
[311001990,1704851432584,-251.17722982,0.00017736,2]
[311001991,1704851432593,-469.64064105,0.00017736,2]
[311001992,1704851432602,-155.47278775,0.00017736,2]
[311001993,1704851432612,-1832.18123338,0.00017736,2]
[311001994,1704851432621,-155.36060944,0.00017736,2]
[311001995,1704851432631,-184.36814101,0.00017736,2]
[311001996,1704851432640,-263.54559693,0.00017736,2]
[311001998,1704851432649,-155.46392837,0.00017736,2]
[311002000,1704851432658,-289.02485253,0.00017737,2]
[311002002,1704851432667,-36987.65844208,0.00017738,2]
[311002003,1704851432676,-3687.23522318,0.00017739,2]
[311002004,1704851432685,-523.71830959,0.00017739,2]
[311002006,1704851432694,-155.71004798,0.00017739,2]
[311002008,1704851432703,-155.17839186,0.00017739,2]
[311002010,1704851432713,-157.83112603,0.00017739,2]
[311002012,1704851432723,-155.95522865,0.00017739,2]
[311002014,1704851432732,-155.12313287,0.00017739,2]
[311002015,1704851432741,-155.49555193,0.00017739,2]
[311002017,1704851432751,-1395.8208979,0.00017739,2]
[311002019,1704851432760,-155.06275693,0.00017739,2]
[311002021,1704851432769,-362.05922215,0.00017739,2]
[311002023,1704851432778,-190.48061924,0.00017739,2]
[311002025,1704851432788,-155.55366155,0.00017739,2]
[311002027,1704851432796,-191.38797694,0.00017739,2]
[311002029,1704851432805,-155.29508163,0.00017741,2]
[311002031,1704851432815,-155.07725077,0.00017741,2]
[311002033,1704851432824,-10500.0358078,0.00017898,2]
[311002034,1704851432832,-1578.65511595,0.00019,2]
[311002036,1704851432841,-177.603375,0.00019178,2]
[311002038,1704851432851,-179.387171,0.00019178,2]
[311002040,1704851432860,-1112.08388858,0.000195,2]
[311002042,1704851432870,-436.18952851,0.000199,2]
[311002044,1704851432879,-155.5002505,0.0002,2]
[311002046,1704851432890,-853.57612089,0.0002,2]
[311002048,1704851432899,-676.96253794,0.0002,2]
[311002050,1704851432908,-2330.89891639,0.0002,2]
[311002112,1704851438468,-663.35613766,0.0002,2]
[311002113,1704851438477,-155.0,0.0002,2]
[311002115,1704851438486,-1195.09669838,0.0002,2]
[311002117,1704851438495,-191.05090823,0.0002,2]
[311002120,1704851438506,-45.74436359,0.0002,2]
[311002122,1704851438515,-429.0068267,0.0002,2]
[311002124,1704851438524,-155.0,0.0002,2]
[311002125,1704851438533,-266.19065175,0.0002,2]
[311002128,1704851438543,-168702.08267643,0.0002,2]
[311002130,1704851438553,-155.690768,0.0002,2]
[311002132,1704851438562,-326.73090334,0.00021,2]
[311002134,1704851438571,-166.666666,0.00021918,2]
[311002136,1704851438580,-4917.8600325,0.00022,2]
[311002138,1704851438589,-156.86767994,0.00022,2]
[311002140,1704851438599,-3931.75997852,0.00022,2]
[311002142,1704851438608,-436.18952851,0.00022275,2]
[311002144,1704851438617,-166.666666,0.00022431,2]
[311002146,1704851438626,-979.14871705,0.000227,2]
[311002148,1704851438635,-2606.59437228,0.00022897,2]
[311002150,1704851438644,-166.666666,0.00022944,2]
[311002152,1704851438654,-2093.08732709,0.00023,2]
[311002154,1704851438663,-9920.80434626,0.00023,2]
[311002156,1704851438672,-500.0,0.00023288,2]
[311002158,1704851438682,-500.0,0.00023288,2]
[311002160,1704851438691,-490.81091228,0.00023288,2]
[311002162,1704851438700,-500.0,0.00023288,2]
[311002164,1704851438709,-455.9070634,0.00023288,2]
[311002166,1704851438721,-500.0,0.00023288,2]
[311002168,1704851438730,-500.0,0.00023288,2]
[311002170,1704851438739,-240.27931548,0.00023288,2]
[311002172,1704851438748,-500.0,0.00023288,2]
[311002174,1704851438757,-500.0,0.00023288,2]
[311002176,1704851438766,-255.45166489,0.00023288,2]
[311002178,1704851438775,-500.0,0.00023288,2]
[311002180,1704851438784,-500.0,0.00023288,2]
[311002182,1704851438793,-216.93029754,0.00023288,2]
[311002184,1704851438802,-486.97683336,0.00023288,2]
[311002186,1704851438811,-208.70435716,0.00023288,2]
[311002188,1704851438821,-166.666666,0.00023456,2]
[311002190,1704851438830,-557.02120283,0.00023898,2]
[311002192,1704851438840,-166.666666,0.00023969,2]
[311002194,1704851438849,-155.21578896,0.00023998,2]
[311002196,1704851438859,-155.0,0.00024,2]
[311002198,1704851438868,-2293.16748545,0.00024,2]
[311002200,1704851438878,-166.666666,0.00024482,2]
[311002202,1704851438886,-436.18952851,0.00024649,2]
[311002203,1704851438899,-380.0,0.00024658,2]
[311002205,1704851438908,-200.0,0.00024658,2]
[311002208,1704851438921,-497.00944952,0.0002498,5]
[311002210,1704851438934,-184.97490616,0.00024994,2]
[311002213,1704851438948,-319.70339424,0.00024994,2]
[311002215,1704851438963,-248.85222163,0.00024995,2]
[311002217,1704851438974,-2038.23595814,0.00024995,2]
[311002220,1704851438987,-1151.24660149,0.00024995,2]
[311002222,1704851438999,-155.24923478,0.00024998,2]
[311002224,1704851439012,-388.95270597,0.00024998,2]
[311002227,1704851439024,-230.29533204,0.00024998,2]
[311002229,1704851439037,-309.55096604,0.00024998,2]
[311002231,1704851439050,-933.18587865,0.00024998,2]
[311002234,1704851439063,-362.39736774,0.00024998,2]
[311002236,1704851439073,-1699.68016174,0.00024998,2]
[311002238,1704851439086,-155.33300815,0.00024998,2]
[311002241,1704851439099,-994.17894836,0.00024998,2]
[311002243,1704851439112,-252.659991,0.00024998,2]
[311002245,1704851439124,-179.98010465,0.00024998,2]
[311002248,1704851439136,-388.64899229,0.00024998,2]
[311002250,1704851439150,-2033.26609225,0.00024998,2]
[311002252,1704851439161,-182.73211065,0.00024998,2]
[311002254,1704851439172,-158.15557148,0.00024998,2]
[311002257,1704851439186,-370.53626376,0.00024998,2]
[311002259,1704851439198,-903.21651068,0.00024998,2]
[311002262,1704851439211,-552.52248839,0.00024998,2]
[311002264,1704851439223,-362.58526665,0.00024999,2]
[311002266,1704851439234,-155.0,0.00025,2]
[311002269,1704851439246,-155.0,0.00025,2]
[311002271,1704851439259,-677.25499859,0.00025,2]
[311002273,1704851439272,-613.86507578,0.00025,2]
[311002276,1704851439286,-997.00355448,0.00025,2]
[311002278,1704851439299,-4709.99124251,0.00025,2]
[311002281,1704851439312,-3000.0,0.00025,2]
[311002283,1704851439323,-16248.80216162,0.00025,2]
[311002285,1704851439333,-155.10911915,0.00025,2]
[311002287,1704851439343,-1004.65983997,0.00025,2]
[311002289,1704851439354,-689.02207163,0.0002508,2]
[311002292,1704851439367,-525.7750246,0.00026,2]
[311002294,1704851439378,-3580.53429443,0.00026,2]
[311002296,1704851439391,-623.45110358,0.00026334,2]
[311002299,1704851439403,-1407.38454672,0.00027,2]
[311002301,1704851439414,-436.18952851,0.00027024,2]
[311002303,1704851439425,-155.0,0.00027397,2]
[311002305,1704851439437,-187.13083097,0.00027495,2]
[311002307,1704851439447,-33079.52681761,0.000275,2]
[311002309,1704851439458,-2044.09885,0.000275,7]
[311002312,1704851439471,-620.17255518,0.00027651,2]
[311002314,1704851439482,-15816.0,0.00027737,2]
[311002316,1704851439493,-2606.59437228,0.00027897,2]
[311002318,1704851439504,-155.03015176,0.00028,2]
[311002321,1704851439515,-668.1030034,0.00028,2]
[311002323,1704851439527,-155.32708373,0.00028,2]
[311002325,1704851439538,-1223.67,0.00028,10]
[311002327,1704851439550,-157.76589739,0.0002828,2]
[311002329,1704851439561,-155.0,0.00028767,2]
[311002332,1704851439572,-151.0,0.00028822,7]
[311002334,1704851439583,-3074.02232779,0.00028997,2]
[311002336,1704851439594,-243.09350002,0.00028999,4]
[311002338,1704851439605,-500.0,0.00028999,4]
[311002340,1704851439616,-219.96504344,0.00028999,4]
[311002343,1704851439627,-475.67428333,0.00028999,4]
[311002345,1704851439637,-387.76295527,0.00028999,4]
[311002347,1704851439648,-500.0,0.00028999,4]
[311002349,1704851439659,-369.79674089,0.00028999,4]
[311002351,1704851439670,-410.00000033,0.00028999,4]
[311002354,1704851439682,-500.0,0.00028999,4]
[311002356,1704851439693,-363.45094982,0.00028999,4]
[311002358,1704851439703,-607.2509753,0.00028999,4]
[311002360,1704851439714,-215.86273745,0.00028999,4]
[311002362,1704851439725,-1982.4602042,0.00029,2]
[311002364,1704851439736,-8878.11747363,0.00029,2]
[311002366,1704851439747,-830.68320521,0.00029,2]
[311002369,1704851439758,-3313.2630203,0.00029,2]
[311002371,1704851439770,-3007.55558385,0.00029,2]
[311002373,1704851439781,-305.01426273,0.00029,2]
[311002375,1704851439792,-155.0,0.00029,2]
[311002377,1704851439803,-300.0,0.00029,2]
[311002379,1704851439814,-1821.85168105,0.00029,2]
[311002381,1704851439825,-200.0,0.00029,2]
[311002383,1704851439836,-2079.63666476,0.00029,2]
[311002386,1704851439848,-204485.9829214,0.00029,7]
[311002388,1704851439863,-24849.18966415,0.00029,7]
[311002472,1704851442207,-2412.84907444,0.00029,7]
[311002473,1704851442221,-51748.10547747,0.00029,7]
[311002474,1704851442231,-1465.26535398,0.00029,2]
[311002475,1704851442240,-620.00862776,0.00029033,2]
[311002476,1704851442249,-22558.48301723,0.00029301,5]
[311002477,1704851442260,-1901.11812048,0.00029301,5]
[311003037,1704852633280,-155.0,0.0001812,3]
[311003039,1704852633289,-1099.89770826,0.0001812,2]
[311003041,1704852633301,-1773.1900081,0.0001812,2]
[311003043,1704852633310,-155.0,0.00018121,2]
[311003045,1704852633320,-264.87381963,0.00018121,2]
[311003047,1704852633330,-872.56977946,0.00018122,2]
[311003049,1704852633339,-7652.49672965,0.00018122,2]
[311003092,1704852638560,-2847.53907815,0.00018122,2]
[311003093,1704852638570,-17668.8555371,0.00018123,2]
[311003094,1704852638579,-3482.7296162,0.00018128,2]
[311003095,1704852638587,-850.0654327,0.00019,2]
[311003115,1704852641780,-728.58968325,0.00019,2]
[311003116,1704852641791,-178.344635,0.00019178,2]
[311003117,1704852641802,-176.146778,0.00019178,2]
[311003118,1704852641812,-1112.08388858,0.000195,2]
[311003119,1704852641822,-1790.64724623,0.00019898,2]
[311003120,1704852641832,-41063.99506275,0.000199,2]
[311003170,1704852721385,200.0,0.00021878,7]
[311003181,1704852952286,10000.0,0.00029,30]
[311003183,1704853097247,1464.71399866,0.00029,30]
[311003315,1704853839017,-155.0,0.00017823,3]
[311003317,1704853839026,-230.48582873,0.00017824,2]
[311003319,1704853839036,-297.1772561,0.00017824,2]
[311003321,1704853839045,-271.96235488,0.00017825,2]
[311003323,1704853839054,-155.0,0.00017825,2]
[311003325,1704853839063,-260.92582316,0.00017826,2]
[311003327,1704853839072,-164.24940589,0.00017826,2]
[311003329,1704853839081,-312.98141829,0.00017827,2]
[311003330,1704853839090,-5472.5810667,0.00017898,2]
[311003345,1704853839219,-5027.4547411,0.00017898,2]
[311003348,1704853839229,-708.18975557,0.00017902,2]
[311003350,1704853839238,-155.3221236,0.0001791,2]
[311003352,1704853839247,-687.67538493,0.00018734,2]
[311003353,1704853839256,-1578.65511595,0.00019177,2]
[311003355,1704853839265,-177.900637,0.00019178,2]
[311003357,1704853839275,-178.344635,0.00019178,2]
[311003360,1704853839284,-1112.08388858,0.000195,2]
[311003361,1704853839294,-200.0,0.00019687,2]
[311003363,1704853839303,-209.68684064,0.00019877,2]
[311003365,1704853839312,-1204.43036833,0.00019878,2]
[311003367,1704853839321,-510.7280536,0.00019878,2]
[311003369,1704853839331,-274.04077868,0.00019878,2]
[311003371,1704853839340,-302.28860936,0.00019879,2]
[311003373,1704853839350,-3753.56134574,0.00019879,2]
[311003376,1704853839360,-4810.04818761,0.00019879,2]
[311003377,1704853839369,-1586.87251384,0.00019888,2]
[311003379,1704853839379,-7977.49416801,0.00019888,2]
[311003381,1704853839389,-166.27558727,0.00019888,2]
[311003383,1704853839398,-472.17514234,0.00019888,2]
[311003385,1704853839408,-253.78489282,0.00019888,2]
[311003387,1704853839417,-20920.40168795,0.00019889,2]
[311003389,1704853839426,-620.48122095,0.00019897,2]
[311003391,1704853839436,-1054.20465476,0.00019897,2]
[311003393,1704853839445,-861.66966634,0.00019898,2]
[311003395,1704853839455,-1079.75662587,0.00019898,2]
[311003397,1704853839463,-643.50022955,0.00019898,2]
[311003399,1704853839472,-286.05666654,0.00019898,2]
[311003401,1704853839482,-238.12881261,0.00019898,2]
[311003403,1704853839491,-1214.06643658,0.00019898,2]
[311003405,1704853839500,-441.51404316,0.00019899,2]
[311003407,1704853839509,-156.35814978,0.000199,2]
[311003409,1704853839518,-463.82741354,0.000199,2]
[311003411,1704853839527,-22994.26,0.00019959,3]
[311003413,1704853839538,-27593.12,0.00019969,3]
[311003415,1704853839547,-33111.74,0.00019979,3]
[311003417,1704853839557,-39734.09,0.00019989,3]
[311003419,1704853839566,-324.84772812,0.00019998,2]
[311003421,1704853839575,-209.48253552,0.00019998,2]
[311003423,1704853839584,-275.44972625,0.00019998,2]
[311003425,1704853839594,-323.77323416,0.00019999,2]
[311003427,1704853839603,-11007.88949272,0.00019999,2]
[311003429,1704853839612,-266.19065175,0.0002,2]
[311003431,1704853839622,-1195.09669838,0.0002,2]
[311003433,1704853839631,-2994.25505405,0.0002,2]
[311003435,1704853839640,-155.0,0.0002,2]
[311003437,1704853839649,-155.0,0.0002,2]
[311003439,1704853839659,-236.79527182,0.0002,2]
[311003441,1704853839668,-429.0068267,0.0002,2]
[311003443,1704853839678,-853.57612089,0.0002,2]
[311003445,1704853839687,-676.96253794,0.0002,2]
[311003447,1704853839696,-155.0,0.0002,2]
[311003449,1704853839705,-155.0,0.0002,2]
[311003451,1704853839715,-168702.08267643,0.0002,2]
[311003453,1704853839724,-200.0,0.0002,2]
[311003455,1704853839733,-569.19143491,0.0002,2]
[311003457,1704853839742,-184.59298851,0.0002,2]
[311003459,1704853839751,-168.53910427,0.0002,2]
[311003461,1704853839762,-269.06809485,0.0002,2]
[311003463,1704853839771,-155.0,0.0002,2]
[311003465,1704853839780,-665.20950523,0.0002,2]
[311003467,1704853839791,-3304.918113,0.0002,2]
[311003469,1704853839800,-3304.918113,0.0002,2]
[311003471,1704853839810,-3304.918113,0.0002,2]
[311003473,1704853839819,-3304.918113,0.0002,2]
[311003475,1704853839828,-3304.918113,0.0002,2]
[311003477,1704853839837,-4480.00182962,0.00021,2]
[311003479,1704853839847,-326.73090334,0.00021,2]
[311003481,1704853839855,-108781.16534932,0.00021778,2]
[311003483,1704853839864,-156.17583486,0.00021878,2]
[311003485,1704853839874,-166.666666,0.00021918,2]
[311003487,1704853839883,-274.8409763,0.00021918,2]
[311003489,1704853839892,-3931.75997852,0.00022,2]
[311003491,1704853839901,-4917.8600325,0.00022,2]
[311003493,1704853839910,-301.08959681,0.00022,2]
[311003495,1704853839919,-292.83058016,0.00022,4]
[311003497,1704853839931,-463.82741352,0.0002215,2]
[311003499,1704853839940,-166.666666,0.00022431,2]
[311003501,1704853839949,-5978.97318979,0.00022471,2]
[311003503,1704853839959,-687.59711705,0.000227,2]
[311003505,1704853839968,-166.666666,0.00022944,2]
[311003507,1704853839977,-9920.80434626,0.00023,2]
[311003509,1704853839986,-2093.08732709,0.00023,2]
[311003511,1704853839995,-486.97683336,0.00023288,2]
[311003513,1704853840003,-500.0,0.00023288,2]
[311003515,1704853840012,-455.9070634,0.00023288,2]
[311003517,1704853840024,-490.81091228,0.00023288,2]
[311003519,1704853840034,-500.0,0.00023288,2]
[311003520,1704853840044,-500.0,0.00023288,2]
[311003522,1704853840053,-500.0,0.00023288,2]
[311003524,1704853840062,-500.0,0.00023288,2]
[311003526,1704853840071,-500.0,0.00023288,2]
[311003528,1704853840080,-240.27931548,0.00023288,2]
[311003530,1704853840089,-500.0,0.00023288,2]
[311003532,1704853840098,-500.0,0.00023288,2]
[311003534,1704853840107,-255.45166489,0.00023288,2]
[311003536,1704853840116,-500.0,0.00023288,2]
[311003538,1704853840125,-499.99999999,0.00023288,2]
[311003540,1704853840134,-166.666666,0.00023456,2]
[311003542,1704853840143,-50000.0,0.00023962,2]
[311003544,1704853840152,-166.666666,0.00023969,2]
[311003546,1704853840161,-500.0,0.00023997,4]
[311003548,1704853840170,-243.09350002,0.00023997,4]
[311003550,1704853840179,-410.00000033,0.00023997,4]
[311003552,1704853840188,-219.96504344,0.00023997,4]
[311003554,1704853840197,-387.76295527,0.00023997,4]
[311003556,1704853840206,-500.0,0.00023997,4]
[311003558,1704853840215,-369.79674089,0.00023997,4]
[311003560,1704853840224,-475.67428333,0.00023997,4]
[311003562,1704853840233,-363.45094982,0.00023997,4]
[311003564,1704853840242,-500.0,0.00023997,4]
[311003566,1704853840251,-607.2509753,0.00023997,4]
[311003568,1704853840260,-13424.69372416,0.00023998,2]
[311003570,1704853840269,-155.0,0.00024,2]
[311003572,1704853840278,-2293.16748545,0.00024,2]
[311003574,1704853840288,-463.82741352,0.000244,2]
[311003576,1704853840298,-166.666666,0.00024482,2]
[311003578,1704853840307,-380.0,0.00024658,2]
[311003580,1704853840316,-200.0,0.00024658,2]
[311003582,1704853840326,-497.00944952,0.0002498,5]
[311003584,1704853840334,-155.01068281,0.00024999,2]
[311003586,1704853840343,-315.56506923,0.00024999,2]
[311003588,1704853840353,-155.0,0.00025,2]
[311003590,1704853840362,-997.46963762,0.00025,2]
[311003592,1704853840371,-155.0,0.00025,2]
[311003594,1704853840380,-3000.0,0.00025,2]
[311003596,1704853840389,-677.45880314,0.00025,2]
[311003598,1704853840398,-4711.08145103,0.00025,2]
[311003600,1704853840407,-16255.58780666,0.00025,2]
[311003602,1704853840417,-614.01289661,0.00025,2]
[311003604,1704853840426,-1771.972282,0.00025,2]
[311003606,1704853840435,-1004.65983997,0.00025,2]
[311003608,1704853840444,-1473.967724,0.00025,2]
[311003610,1704853840454,-1473.967724,0.00025,2]
[311003612,1704853840463,-151.0,0.00025,2]
[311003614,1704853840472,-689.01387526,0.000251,2]
[311003616,1704853840481,-525.91402641,0.00026,2]
[311003618,1704853840491,-50000.0,0.0002612,2]